fUSD/lending_fUSD_20251025
["ID","MTS","AMOUNT","RATE_DAILY","PERIOD"]
[392391531,1761423444520,600.0,0.00036925,30]
[392391532,1761423444590,559.19188,0.00036925,30]
[392391533,1761423445017,500.0,0.00036925,30]
[392391534,1761423445055,250.0,0.00036925,30]
[392391535,1761423445172,151.0,0.00036925,30]
[392391536,1761423445206,151.0,0.00036925,30]
[392391537,1761423445237,151.0,0.00036925,30]
[392391538,1761423445735,250.0,0.00036925,30]
[392391539,1761423445768,500.0,0.00036925,30]
[392391540,1761423445809,151.0,0.00036925,30]
[392391541,1761423445848,151.0,0.00036925,30]
[392391542,1761423446284,500.0,0.00036925,30]
[392391543,1761423446317,250.0,0.00036925,30]
[392391544,1761423446353,151.0,0.00036925,30]
[392391545,1761423446388,250.0,0.00036925,30]
[392391546,1761423446421,151.0,0.00036925,30]
[392391548,1761423446949,500.0,0.00036925,30]
[392391549,1761423446980,250.0,0.00036925,30]
[392391550,1761423447011,151.0,0.00036925,30]
[392391551,1761423447055,250.0,0.00036925,30]
[392391552,1761423447096,151.0,0.00036925,30]
[392391553,1761423447544,151.0,0.00036925,30]
[392391554,1761423447588,250.0,0.00036925,30]
[392391555,1761423447623,500.0,0.00036925,30]
[392391556,1761423447654,250.0,0.00036925,30]
[392391557,1761423447713,151.0,0.00036925,30]
[392391558,1761423448390,151.0,0.00036925,30]
[392391559,1761423448430,250.0,0.00036925,30]
[392391560,1761423448465,250.0,0.00036925,30]
[392391561,1761423448497,500.0,0.00036925,30]
[392391562,1761423448532,151.0,0.00036925,30]
[392391563,1761423448753,151.0,0.00036925,30]
[392391564,1761423448819,250.0,0.00036925,30]
[392391565,1761423448881,500.0,0.00036925,30]
[392391566,1761423448917,151.0,0.00036925,30]
[392391567,1761423448952,250.0,0.00036925,30]
[392391568,1761423449431,250.0,0.00036925,30]
[392391569,1761423449486,500.0,0.00036925,30]
[392391570,1761423449695,151.0,0.00036925,30]
[392391571,1761423449730,250.0,0.00036925,30]
[392391572,1761423450058,250.0,0.00036925,30]
[392391573,1761423450127,500.0,0.00036925,30]
[392391574,1761423450162,151.0,0.00036925,30]
[392391575,1761423450197,500.0,0.00036925,30]
[392391576,1761423450333,250.0,0.00036925,30]
[392391577,1761423450684,250.0,0.00036925,30]
[392391578,1761423450755,500.0,0.00036925,30]
[392391579,1761423450788,151.0,0.00036925,30]
[392391580,1761423450823,500.0,0.00036925,30]
[392391581,1761423450868,200.0,0.00036925,30]
[392391582,1761423450949,250.0,0.00036925,30]
[392391583,1761423451316,250.0,0.00036925,30]
[392391584,1761423451361,500.0,0.00036925,30]
[392391585,1761423451458,500.0,0.00036925,30]
[392391586,1761423451491,200.0,0.00036925,30]
[392391587,1761423451534,151.0,0.00036925,30]
[392391588,1761423451568,250.0,0.00036925,30]
[392391589,1761423451909,250.0,0.00036925,30]
[392391590,1761423451977,500.0,0.00036925,30]
[392391591,1761423452060,500.0,0.00036925,30]
[392391592,1761423452110,200.0,0.00036925,30]
[392391593,1761423452164,151.0,0.00036925,30]
[392391594,1761423452198,250.0,0.00036925,30]
[392391595,1761423452518,250.0,0.00036925,30]
[392391596,1761423452657,500.0,0.00036925,30]
[392391597,1761423452775,151.0,0.00036925,30]
[392391598,1761423452847,250.0,0.00036925,30]
[392391599,1761423453166,250.0,0.00036925,30]
[392391600,1761423453312,500.0,0.00036925,30]
[392391601,1761423453389,151.0,0.00036925,30]
[392391602,1761423453459,250.0,0.00036925,30]
[392391603,1761423453771,250.0,0.00036925,30]
[392391604,1761423453921,500.0,0.00036925,30]
[392391605,1761423454063,250.0,0.00036925,30]
[392391606,1761423454376,250.0,0.00036925,30]
[392391607,1761423454554,500.0,0.00036925,30]
[392391608,1761423454671,250.0,0.00036925,30]
[392391609,1761423454964,1000.0,0.00036925,60]
[392391610,1761423455136,153.56712186,0.00036925,30]
[392391612,1761423455167,500.0,0.00036925,30]
[392391614,1761423455305,250.0,0.00036925,30]
[392391615,1761423455789,500.0,0.00036925,30]
[392391616,1761423456042,250.0,0.00036925,30]
[392391617,1761423456652,250.0,0.00036925,30]
[392391618,1761423457234,250.0,0.00036925,30]
[392391619,1761423457494,600.0,0.00036925,30]
[392391620,1761423457825,250.0,0.00036925,30]
[392391621,1761423458661,250.0,0.00036925,30]
[392391622,1761423462880,151.0,0.00036925,30]
[392391623,1761423463495,151.0,0.00036925,30]
[392391624,1761423464116,151.0,0.00036925,30]
[392391625,1761423467286,984.72783078,0.00036925,30]
[392391626,1761423467692,1000.0,0.00036925,60]
[392391628,1761423480419,1000.0,0.00036925,30]
[392391629,1761423481574,312.16935854,0.00030261,120]
[392391630,1761423483291,300.0,0.00030261,120]
[392391631,1761423483406,300.0,0.00028021,120]
[392391632,1761423483523,300.0,0.000288,120]
[392391633,1761423483633,300.0,0.000288,120]
[392391634,1761423483819,432.60836671,0.000288,120]
[392391635,1761423484165,2585.43250625,0.00036925,120]
[392391637,1761423487283,195.0,0.00030261,120]
[392391638,1761423487371,195.0,0.00028021,120]
[392391639,1761423487478,195.0,0.0002864,120]
[392391640,1761423488237,300.0,0.00030261,120]
[392391641,1761423493156,1000.0,0.00036925,30]
[392391643,1761423505892,1000.0,0.00036925,120]
[392391644,1761423514497,2000.0,0.00036925,30]
[392391646,1761423518618,1000.0,0.00036925,30]
[392391647,1761423531346,1000.0,0.00036925,60]
[392391653,1761423544079,1000.0,0.00036925,30]
[392391654,1761423544220,195.0,0.00030261,120]
[392391655,1761423544315,195.0,0.00027748,120]
[392391656,1761423546081,300.0,0.00030261,120]
[392391657,1761423546181,300.0,0.00027748,120]
[392391658,1761423546277,300.0,0.00028201,120]
[392391659,1761423546411,300.0,0.00028201,120]
[392391660,1761423546500,300.0,0.00028201,120]
[392391661,1761423548396,1275.35195004,0.00036925,30]
[392391673,1761423557071,1000.0,0.00036925,60]
[392391674,1761423568000,314.55067941,0.00036924,60]
[392391676,1761423569576,1000.0,0.00036924,60]
[392391682,1761423582296,1000.0,0.00036924,120]
[392391690,1761423595015,1000.0,0.00036924,60]
[392391693,1761423601291,1000.0,0.00036924,30]
[392391694,1761423601695,1000.0,0.00036924,30]
[392391697,1761423602186,1000.0,0.00036924,30]
[392391699,1761423603348,150.0,0.00036924,30]
[392391700,1761423603378,879.25,0.00036924,30]
[392391701,1761423603425,200.78959691,0.00036924,120]
[392391702,1761423603459,1000.0,0.00036924,30]
[392391703,1761423603489,1000.0,0.00036924,30]
[392391704,1761423603528,450.0,0.00036924,120]
[392391705,1761423603558,205.00561465,0.00036924,120]
[392391706,1761423603589,553.99,0.00036924,30]
[392391707,1761423604108,1000.0,0.00036924,30]
[392391708,1761423604732,1000.0,0.00036924,30]
[392391709,1761423604764,1000.0,0.00036924,30]
[392391711,1761423605628,1000.0,0.00036924,30]
[392391712,1761423605868,1000.0,0.00036924,30]
[392391713,1761423605924,1000.0,0.00036924,30]
[392391714,1761423606142,300.0,0.00029588,120]
[392391715,1761423606231,300.0,0.00029588,120]
[392391716,1761423606353,300.0,0.00029588,120]
[392391717,1761423606456,300.0,0.00029588,120]
[392391718,1761423606566,300.0,0.00029588,120]
[392391719,1761423606764,1000.0,0.00036924,30]
[392391721,1761423606989,1000.0,0.00036924,30]
[392391722,1761423607039,1000.0,0.00036924,30]
[392391723,1761423607750,1000.0,0.00036924,60]
[392391724,1761423607928,446.82632114,0.00036924,30]
[392391725,1761423608084,1000.0,0.00036924,30]
[392391726,1761423608166,1000.0,0.00036924,30]
[392391727,1761423609218,950.93233095,0.00036924,30]
[392391729,1761423609311,813.53931755,0.00036924,30]
[392391734,1761423620477,1000.0,0.00036924,60]
[392391740,1761423633204,1006.44,0.00036924,60]
[392391756,1761423661287,200.0,0.00036924,30]
[392391759,1761423665200,300.0,0.00029209,120]
[392391760,1761423665341,300.0,0.00029209,120]
[392391761,1761423665383,300.0,0.00029209,120]
[392391762,1761423665421,300.0,0.00029209,120]
[392391769,1761423725541,152.35205592,0.00036924,30]
[392391770,1761423726093,500.0,0.00036924,30]
[392391771,1761423726131,250.0,0.00036924,30]
[392391772,1761423726690,500.0,0.00036924,30]
[392391773,1761423726723,250.0,0.00036924,30]
[392391774,1761423727298,250.0,0.00036924,30]
[392391775,1761423727341,500.0,0.00036924,30]
[392391776,1761423727886,304.89231651,0.00036924,30]
[392391777,1761423727918,203.33226845,0.00036924,30]
[392391778,1761423727955,500.0,0.00036924,30]
[392391779,1761423727987,230.34711375,0.00036924,30]
[392391780,1761423728019,160.86713178,0.00036924,30]
[392391781,1761423728055,250.0,0.00036924,30]
[392391782,1761423728555,250.0,0.00036924,30]
[392391783,1761423728613,250.0,0.00036924,30]
[392391784,1761423728646,500.0,0.00036924,30]
[392391785,1761423729187,250.0,0.00036924,30]
[392391786,1761423729228,250.0,0.00036924,30]
[392391787,1761423729312,500.0,0.00036924,30]
[392391788,1761423729791,250.0,0.00036924,30]
[392391789,1761423729833,250.0,0.00036924,30]
[392391790,1761423729927,500.0,0.00036924,30]
[392391791,1761423730236,414.0,0.00036924,30]
[392391792,1761423730391,250.0,0.00036924,30]
[392391793,1761423730434,250.0,0.00036924,30]
[392391794,1761423730538,500.0,0.00036924,30]
[392391795,1761423730836,429.318,0.00036924,30]
[392391796,1761423730883,151.0,0.00036924,30]
[392391797,1761423730985,300.0,0.00036924,30]
[392391798,1761423731019,250.0,0.00036924,30]
[392391799,1761423731321,500.0,0.00036924,30]
[392391800,1761423731477,445.202766,0.00036924,30]
[392391801,1761423731513,557.84702272,0.00036924,30]
[392391802,1761423731547,156.587,0.00036924,30]
[392391803,1761423731617,250.0,0.00036924,30]
[392391804,1761423731669,300.0,0.00036924,30]
[392391805,1761423731915,500.0,0.00036924,30]
[392391806,1761423732132,162.380719,0.00036924,30]
[392391807,1761423732164,461.67526834,0.00036924,30]
[392391808,1761423732609,500.0,0.00036924,30]
[392391809,1761423732818,478.75725327,0.00036924,30]
[392391810,1761423733360,168.3888056,0.00036924,30]
[392391811,1761423733497,496.47127164,0.00036924,30]
[392391812,1761423733737,500.0,0.00036924,30]
[392391813,1761423733881,174.61919141,0.00036924,30]
[392391814,1761423734056,151.0,0.00036924,30]
[392391815,1761423734091,514.84070869,0.00036924,30]
[392391816,1761423734394,500.0,0.00036924,30]
[392391817,1761423734552,250.0,0.00036924,30]
[392391818,1761423734653,151.0,0.00036924,30]
[392391819,1761423734687,533.88981491,0.00036924,30]
[392391820,1761423735036,500.0,0.00036924,30]
[392391821,1761423735353,151.0,0.00036924,30]
[392391822,1761423735390,250.0,0.00036924,30]
[392391823,1761423735424,553.64373807,0.00036924,30]
[392391824,1761423735597,500.0,0.00036924,30]
[392391825,1761423735821,646.43009205,0.00036924,30]
[392391826,1761423735976,250.0,0.00036924,30]
[392391827,1761423736014,574.12855637,0.00036924,30]
[392391828,1761423736197,500.0,0.00036924,30]
[392391829,1761423736496,151.0,0.00036924,30]
[392391830,1761423736588,250.0,0.00036924,30]
[392391831,1761423736651,595.37131296,0.00036924,30]
[392391832,1761423736814,500.0,0.00036924,30]
[392391833,1761423737125,151.0,0.00036924,30]
[392391834,1761423737182,250.0,0.00036924,30]
[392391835,1761423737315,617.40005154,0.00036924,30]
[392391836,1761423737449,500.0,0.00036924,30]
[392391837,1761423737743,151.0,0.00036924,30]
[392391838,1761423738319,640.24385345,0.00036924,30]
[392391839,1761423738380,500.0,0.00036924,30]
[392391840,1761423738500,151.0,0.00036924,30]
[392391841,1761423738623,663.93287602,0.00036924,30]
[392391842,1761423738692,500.0,0.00036924,30]
[392391843,1761423739147,688.49839244,0.00036924,30]
[392391844,1761423739572,250.0,0.00036924,30]
[392391845,1761423739608,202.77975042,0.00036924,30]
[392391846,1761423739765,713.97283296,0.00036924,30]
[392391847,1761423740145,250.0,0.00036924,30]
[392391848,1761423740381,740.38982778,0.00036924,30]
[392391849,1761423740418,151.0,0.00036924,30]
[392391850,1761423740790,250.0,0.00036924,30]
[392391851,1761423741012,767.7842514,0.00036924,30]
[392391852,1761423741044,151.0,0.00036924,30]
[392391853,1761423741507,250.0,0.00036924,30]
[392391854,1761423741625,796.19226871,0.00036924,30]
[392391855,1761423741657,151.0,0.00036924,30]
[392391856,1761423741809,500.0,0.00036924,30]
[392391857,1761423741964,200.0,0.00036924,30]
[392391858,1761423742138,250.0,0.00036924,30]
[392391859,1761423742352,300.0,0.00036924,30]
[392391860,1761423742407,500.0,0.00036924,30]
[392391861,1761423742887,250.0,0.00036924,30]
[392391862,1761423743024,500.0,0.00036924,30]
[392391863,1761423743466,250.0,0.00036924,30]
[392391864,1761423743678,500.0,0.00036924,30]
[392391865,1761423744090,250.0,0.00036924,30]
[392391866,1761423744287,500.0,0.00036924,30]
[392391867,1761423744735,151.0,0.00036924,30]
[392391868,1761423744803,250.0,0.00036924,30]
[392391869,1761423744906,500.0,0.00036924,30]
[392391870,1761423745394,151.0,0.00036924,30]
[392391871,1761423745433,250.0,0.00036924,30]
[392391872,1761423745497,500.0,0.00036924,30]
[392391873,1761423746003,151.0,0.00036924,30]
[392391874,1761423746042,250.0,0.00036924,30]
[392391875,1761423746153,500.0,0.00036924,30]
[392391876,1761423746668,250.0,0.00036924,30]
[392391877,1761423746705,151.0,0.00036924,30]
[392391878,1761423746796,500.0,0.00036924,30]
[392391879,1761423747277,250.0,0.00036924,30]
[392391880,1761423747332,151.0,0.00036924,30]
[392391881,1761423747395,500.0,0.00036924,30]
[392391882,1761423747868,250.0,0.00036924,30]
[392391883,1761423748080,151.0,0.00036924,30]
[392391884,1761423748147,500.0,0.00036924,30]
[392391885,1761423748620,250.0,0.00036924,30]
[392391886,1761423748755,500.0,0.00036924,30]
[392391887,1761423748787,151.0,0.00036924,30]
[392391888,1761423749088,250.0,0.00036924,30]
[392391889,1761423749211,500.0,0.00036924,30]
[392391890,1761423749244,151.0,0.00036924,30]
[392391891,1761423749746,250.0,0.00036924,30]
[392391892,1761423749903,151.0,0.00036924,30]
[392391893,1761423749958,500.0,0.00036924,30]
[392391894,1761423750433,250.0,0.00036924,30]
[392391895,1761423750645,500.0,0.00036924,30]
[392391896,1761423750699,151.0,0.00036924,30]
[392391897,1761423751042,250.0,0.00036924,30]
[392391898,1761423751213,500.0,0.00036924,30]
[392391899,1761423751373,151.0,0.00036924,30]
[392391900,1761423751640,250.0,0.00036924,30]
[392391901,1761423751800,500.0,0.00036924,30]
[392391902,1761423751980,151.0,0.00036924,30]
[392391903,1761423752579,151.0,0.00036924,30]
[392391904,1761423752799,500.0,0.00036924,30]
[392391905,1761423753186,151.0,0.00036924,30]
[392391906,1761423753399,500.0,0.00036924,30]
[392391907,1761423753811,151.0,0.00036924,30]
[392391908,1761423754006,500.0,0.00036924,30]
[392391909,1761423754490,151.0,0.00036924,30]
[392391910,1761423754616,500.0,0.00036924,30]
[392391911,1761423754952,250.0,0.00036924,30]
[392391912,1761423755101,151.0,0.00036924,30]
[392391913,1761423755232,500.0,0.00036924,30]
[392391914,1761423755700,151.0,0.00036924,30]
[392391915,1761423755850,500.0,0.00036924,30]
[392391916,1761423756306,151.0,0.00036924,30]
[392391917,1761423756473,500.0,0.00036924,30]
[392391918,1761423757072,151.0,0.00036924,30]
[392391919,1761423757119,500.0,0.00036924,30]
[392391920,1761423757751,500.0,0.00036924,30]
[392391921,1761423758344,500.0,0.00036924,30]
[392391922,1761423759336,500.0,0.00036924,30]
[392391923,1761423760006,500.0,0.00036924,30]
[392391924,1761423760081,500.0,0.00036924,30]
[392391925,1761423760636,500.0,0.00036924,30]
[392391926,1761423760674,500.0,0.00036924,30]
[392391927,1761423761277,500.0,0.00036924,30]
[392391928,1761423761310,500.0,0.00036924,30]
[392391929,1761423761872,500.0,0.00036924,30]
[392391930,1761423761908,500.0,0.00036924,30]
[392391931,1761423762482,500.0,0.00036924,30]
[392391932,1761423762516,500.0,0.00036924,30]
[392391933,1761423763075,500.0,0.00036924,30]
[392391934,1761423763113,500.0,0.00036924,30]
[392391935,1761423763670,500.0,0.00036924,30]
[392391936,1761423763760,500.0,0.00036924,30]
[392391937,1761423764298,500.0,0.00036924,30]
[392391938,1761423764412,500.0,0.00036924,30]
[392391940,1761423765083,500.0,0.00036924,30]
[392391941,1761423765404,500.0,0.00036924,30]
[392391942,1761423765695,214.9,0.00036924,30]
[392391943,1761423765755,500.0,0.00036924,30]
[392391944,1761423766288,500.0,0.00036924,30]
[392391945,1761423766919,500.0,0.00036924,30]
[392391946,1761423766963,214.9,0.00036924,30]
[392391947,1761423767546,500.0,0.00036924,30]
[392391948,1761423767833,214.9,0.00036924,30]
[392391949,1761423768143,500.0,0.00036924,30]
[392391950,1761423768778,214.9,0.00036924,30]
[392391953,1761423801980,295.38363727,0.00024932,2]
[392391962,1761423908167,1118.51862754,0.00036925,90]
[392391963,1761423910178,533.81057441,0.00036925,30]
[392391964,1761423910459,1999.999994,0.00036925,120]
[392391966,1761423911450,491.14417496,0.00036925,60]
[392391967,1761423911674,398.95687435,0.00036925,30]
[392391968,1761423911727,715.05824471,0.00036925,30]
[392391969,1761423912245,589.2165492,0.00036925,91]
[392391970,1761423912379,483.65698851,0.00036925,30]
[392391971,1761423914160,474.26163756,0.00036925,30]
[392391972,1761423914706,915.3479569,0.00036925,30]
[392391973,1761423915760,680.22625895,0.00036925,120]
[392391974,1761423917225,802.1720267,0.00036925,30]
[392391975,1761423923021,772.25963667,0.00036925,30]
[392391976,1761423923365,274.79555957,0.00036925,120]
[392391977,1761423925014,201.36327928,0.00036925,120]
[392391978,1761423927745,754.8659057,0.00036925,30]
[392391979,1761423928671,247.27098947,0.00036925,30]
[392391980,1761423931729,195.31803248,0.00036925,120]
[392391981,1761423943084,737.50672686,0.00036925,30]
[392391982,1761423946662,396.20061845,0.00036925,120]
[392391983,1761423949992,896.40115547,0.00036925,30]
[392391984,1761423958081,905.16192784,0.00036925,30]
[392391985,1761423960739,592.27275487,0.00036925,90]
[392391986,1761423961157,200.0,0.00036925,30]
[392391988,1761423963111,567.61799461,0.00036925,120]
[392391989,1761423964321,488.64883999,0.00036925,30]
[392391990,1761423964907,665.00215182,0.00036925,120]
[392391991,1761423965474,179.44205466,0.00036925,120]
[392391992,1761423967487,974.98753856,0.00036925,30]
[392391993,1761423967763,187.03075929,0.00036925,120]
[392391994,1761423968352,202.29306543,0.00036925,30]
[392391995,1761423969456,595.56392925,0.00036925,60]
[392391996,1761423969587,240.73894783,0.00036925,120]
[392391997,1761423973077,218.17725508,0.00036925,30]
[392391998,1761423973165,344.25614918,0.00036925,60]
[392391999,1761423973580,1007.40738724,0.00036925,30]
[392392000,1761423987298,671.24073474,0.00036925,120]
[392392001,1761423989230,368.06977781,0.00036925,30]
[392392002,1761423995227,563.9734682,0.00036925,30]
[392392003,1761424003222,946.06439335,0.00036925,30]
[392392006,1761424024764,500.0,0.00036925,30]
[392392007,1761424025214,156.71913146,0.00036925,30]
[392392008,1761424025371,500.0,0.00036925,30]
[392392009,1761424025968,500.0,0.00036925,30]
[392392010,1761424026564,500.0,0.00036925,30]
[392392011,1761424027144,218.29896531,0.00036925,30]
[392392012,1761424027179,500.0,0.00036925,30]
[392392013,1761424027750,500.0,0.00036925,30]
[392392014,1761424028711,500.0,0.00036925,30]
[392392015,1761424028926,500.0,0.00036925,30]
[392392016,1761424029546,500.0,0.00036925,30]
[392392017,1761424030138,500.0,0.00036925,30]
[392392018,1761424030171,153.82718691,0.00036925,30]
[392392019,1761424030206,151.0,0.00036925,30]
[392392020,1761424030777,500.0,0.00036925,30]
[392392021,1761424030927,151.0,0.00036925,30]
[392392022,1761424031366,320.12534043,0.00036925,120]
[392392023,1761424031403,500.0,0.00036925,30]
[392392024,1761424031589,151.0,0.00036925,30]
[392392025,1761424032004,500.0,0.00036925,30]
[392392026,1761424032180,151.0,0.00036925,30]
[392392027,1761424032593,500.0,0.00036925,30]
[392392028,1761424032777,151.0,0.00036925,30]
[392392029,1761424033190,500.0,0.00036925,30]
[392392030,1761424033386,151.0,0.00036925,30]
[392392031,1761424033801,500.0,0.00036925,30]
[392392032,1761424033992,151.0,0.00036925,30]
[392392033,1761424034397,500.0,0.00036925,30]
[392392034,1761424034695,151.0,0.00036925,30]
[392392035,1761424035022,500.0,0.00036925,30]
[392392036,1761424035277,151.0,0.00036925,30]
[392392037,1761424035619,500.0,0.00036925,30]
[392392038,1761424035865,151.0,0.00036925,30]
[392392039,1761424036049,477.59982076,0.00036925,30]
[392392040,1761424036299,500.0,0.00036925,30]
[392392041,1761424036630,151.0,0.00036925,30]
[392392042,1761424036894,500.0,0.00036925,30]
[392392043,1761424037249,151.0,0.00036925,30]
[392392044,1761424037390,211.34086981,0.00036925,30]
[392392045,1761424037516,500.0,0.00036925,30]
[392392046,1761424037556,250.0,0.00036925,30]
[392392047,1761424037838,151.0,0.00036925,30]
[392392048,1761424038108,500.0,0.00036925,30]
[392392049,1761424038148,250.0,0.00036925,30]
[392392050,1761424038642,151.0,0.00036925,30]
[392392051,1761424039136,500.0,0.00036925,30]
[392392052,1761424039175,250.0,0.00036925,30]
[392392053,1761424039243,322.6107,0.00036925,30]
[392392054,1761424039304,151.0,0.00036925,30]
[392392055,1761424039346,500.0,0.00036925,30]
[392392056,1761424039386,250.0,0.00036925,30]
[392392057,1761424039862,151.0,0.00036925,30]
[392392058,1761424039956,250.0,0.00036925,30]
[392392059,1761424039991,500.0,0.00036925,30]
[392392060,1761424040481,151.0,0.00036925,30]
[392392061,1761424040560,500.0,0.00036925,30]
[392392062,1761424040593,250.0,0.00036925,30]
[392392063,1761424041074,151.0,0.00036925,30]
[392392064,1761424041157,500.0,0.00036925,30]
[392392065,1761424041195,250.0,0.00036925,30]
[392392066,1761424041749,151.0,0.00036925,30]
[392392067,1761424041783,500.0,0.00036925,30]
[392392068,1761424041816,250.0,0.00036925,30]
[392392069,1761424042371,151.0,0.00036925,30]
[392392070,1761424042416,250.0,0.00036925,30]
[392392071,1761424042451,500.0,0.00036925,30]
[392392072,1761424042487,200.0,0.00036925,30]
[392392073,1761424042836,300.0,0.00036925,30]
[392392074,1761424043025,500.0,0.00036925,30]
[392392075,1761424043059,250.0,0.00036925,30]
[392392076,1761424043663,250.0,0.00036925,30]
[392392077,1761424046976,1060.41648452,0.00036925,30]
[392392078,1761424050895,340.03196796,0.00036925,120]
[392392079,1761424051612,153.70444199,0.00036925,120]
[392392080,1761424052234,1164.37663995,0.00036925,120]
[392392081,1761424057453,335.46859711,0.00036925,120]
[392392082,1761424061802,999.73455262,0.00036925,120]
[392392083,1761424063276,596.38423344,0.00036925,120]
[392392084,1761424064177,643.56398786,0.00036925,120]
[392392085,1761424064849,262.2333871,0.00036925,120]
[392392086,1761424066002,287.08250194,0.00036925,30]
[392392087,1761424069853,997.0,0.00036925,30]
[392392088,1761424070261,1170.1830302,0.00036925,120]
[392392089,1761424076271,994.01437503,0.00036925,30]
[392392090,1761424076305,258.86807966,0.00036925,120]
[392392091,1761424077797,283.68671486,0.00036925,30]
[392392092,1761424079947,784.00882103,0.00036925,120]
[392392094,1761424082757,524.14846521,0.00036925,60]
[392392095,1761424085193,313.3031648,0.00036925,30]
[392392096,1761424085748,926.11545508,0.00036925,30]
[392392097,1761424086476,646.17173758,0.00036925,45]
[392392098,1761424086532,579.53336475,0.00036925,30]
[392392099,1761424098009,846.08735702,0.00036925,120]
[392392100,1761424103893,482.08328173,0.00036925,60]
[392392101,1761424105255,854.30076098,0.00036925,120]
[392392102,1761424105290,213.77065498,0.00036925,30]
[392392103,1761424106707,1262.62285102,0.00036925,80]
[392392104,1761424107560,199.49698667,0.00036925,30]
[392392105,1761424108505,279.99532083,0.00036925,30]
[392392106,1761424109298,213.63863391,0.00036925,31]
[392392107,1761424109741,1049.15337518,0.00036925,120]
[392392108,1761424110168,287.89995662,0.00036925,120]
[392392109,1761424111661,286.83047035,0.00036925,30]
[392392110,1761424111701,500.47596218,0.00036925,30]
[392392111,1761424112660,756.0,0.00036925,120]
[392392112,1761424112793,398.16750107,0.00036925,30]
[392392113,1761424113535,1026.33407917,0.00036925,120]
[392392114,1761424113920,491.29044066,0.0002,10]
[392392115,1761424115616,507.65601251,0.00036925,120]
[392392116,1761424116057,606.79595542,0.00036925,120]
[392392117,1761424116357,1131.53391339,0.00036925,120]
[392392118,1761424116833,928.91700515,0.00036925,30]
[392392119,1761424117044,274.96814668,0.00036925,30]
[392392120,1761424118212,450.12189797,0.00036925,30]
[392392121,1761424118531,960.37880798,0.00036925,120]
[392392122,1761424120287,225.13718033,0.00036925,120]